[Event "Titled Tuesday Blitz April 18 Early 2023"]
[White "Goltsev, Dmitry"]
[Black "Janaszak, Dawid"]
[WhiteFideId "24176710"]
[BlackFideId "1119206"]
[WhiteElo "2336"]
[BlackElo "2220"]
[Result "0-1"]
[Round "03"]
[TimeControl "180+2"]
[Date "2023.04.18"]
[WhiteClock "0:00:03"]
[BlackClock "0:00:07"]

1. e4 {[%clk 0:03:00]}  c5 {[%clk 0:02:59]} 2. Nf3 {[%clk 0:02:56]}  Nc6 {[%clk 0:02:59]} 3. d4 {[%clk 0:02:55]}  cxd4 {[%clk 0:03:00]} 4. Nxd4 {[%clk 0:02:56]}  e5 {[%clk 0:02:59]} 5. Nf5 {[%clk 0:02:54]}  d5 {[%clk 0:02:59]} 6. Qxd5 {[%clk 0:02:54]}  Qxd5 {[%clk 0:02:59]} 7. exd5 {[%clk 0:02:55]}  Bxf5 {[%clk 0:02:59]} 8. dxc6 {[%clk 0:02:53]}  bxc6 {[%clk 0:03:00]} 9. Bd3 {[%clk 0:02:53]}  Bxd3 {[%clk 0:02:55]} 10. cxd3 {[%clk 0:02:54]}  Nf6 {[%clk 0:02:52]} 11. Nc3 {[%clk 0:02:54]}  O-O-O {[%clk 0:02:51]} 12. Ke2 {[%clk 0:02:52]}  Nd5 {[%clk 0:02:48]} 13. Be3 {[%clk 0:02:49]}  Kb7 {[%clk 0:02:41]} 14. Rac1 {[%clk 0:02:49]}  f5 {[%clk 0:02:32]} 15. f3 {[%clk 0:02:46]}  Be7 {[%clk 0:02:21]} 16. Rc2 {[%clk 0:02:33]}  Nb4 {[%clk 0:01:50]} 17. Rd2 {[%clk 0:02:31]}  g5 {[%clk 0:01:45]} 18. Rc1 {[%clk 0:02:29]}  Rhg8 {[%clk 0:01:43]} 19. Na4 {[%clk 0:02:25]}  g4 {[%clk 0:01:37]} 20. f4 {[%clk 0:01:09]}  exf4 {[%clk 0:01:23]} 21. Bxf4 {[%clk 0:01:10]}  Rge8 {[%clk 0:01:21]} 22. Kf1 {[%clk 0:01:08]}  Nxd3 {[%clk 0:01:15]} 23. Rc4 {[%clk 0:01:06]}  Nxf4 {[%clk 0:00:47]} 24. Rxd8 {[%clk 0:01:05]}  Bxd8 {[%clk 0:00:33]} 25. Rxf4 {[%clk 0:01:04]}  Re5 {[%clk 0:00:28]} 26. Rd4 {[%clk 0:00:57]}  Kc7 {[%clk 0:00:24]} 27. b3 {[%clk 0:00:44]}  Bh4 {[%clk 0:00:24]} 28. g3 {[%clk 0:00:42]}  Bf6 {[%clk 0:00:24]} 29. Rd3 {[%clk 0:00:37]}  h5 {[%clk 0:00:21]} 30. Rd2 {[%clk 0:00:28]}  h4 {[%clk 0:00:21]} 31. Kg2 {[%clk 0:00:24]}  h3+ {[%clk 0:00:19]} 32. Kf2 {[%clk 0:00:25]}  Re4 {[%clk 0:00:17]} 33. Nc5 {[%clk 0:00:22]}  Re7 {[%clk 0:00:17]} 34. a3 {[%clk 0:00:17]}  Bc3 {[%clk 0:00:16]} 35. Rd3 {[%clk 0:00:12]}  Bb2 {[%clk 0:00:17]} 36. b4 {[%clk 0:00:12]}  Bf6 {[%clk 0:00:13]} 37. Rd2 {[%clk 0:00:08]}  Be5 {[%clk 0:00:13]} 38. Kf1 {[%clk 0:00:07]}  f4 {[%clk 0:00:13]} 39. gxf4 {[%clk 0:00:05]}  Bxf4 {[%clk 0:00:14]} 40. Rf2 {[%clk 0:00:05]}  Be3 {[%clk 0:00:13]} 41. Re2 {[%clk 0:00:05]}  Bxc5 {[%clk 0:00:13]} 42. bxc5 {[%clk 0:00:05]}  Rf7+ {[%clk 0:00:09]} 43. Rf2 {[%clk 0:00:04]}  Rd7 {[%clk 0:00:08]} 44. Rf4 {[%clk 0:00:05]}  Rd2 {[%clk 0:00:07]} 45. Rxg4 {[%clk 0:00:05]}  Rxh2 {[%clk 0:00:08]} 46. Rg7+ {[%clk 0:00:05]}  Kb8 {[%clk 0:00:08]} 47. Kg1 {[%clk 0:00:04]}  Ra2 {[%clk 0:00:07]} 48. Rg3 {[%clk 0:00:02]}  h2+ {[%clk 0:00:07]} 49. Kh1 {[%clk 0:00:03]}  Rc2 {[%clk 0:00:08]} 50. Rg5 {[%clk 0:00:03]}  Kb7 {[%clk 0:00:08]} 51. a4 {[%clk 0:00:02]}  Ka6 {[%clk 0:00:08]} 52. Rh5 {[%clk 0:00:02]}  Ka5 {[%clk 0:00:07]} 53. Rh7 {[%clk 0:00:02]}  a6 {[%clk 0:00:08]} 54. Rh5 {[%clk 0:00:02]}  Kxa4 {[%clk 0:00:08]} 55. Rh6 {[%clk 0:00:03]}  Kb5 {[%clk 0:00:08]} 56. Rh5 {[%clk 0:00:03]}  a5 {[%clk 0:00:08]} 57. Rh8 {[%clk 0:00:03]}  a4 {[%clk 0:00:09]} 58. Rb8+ {[%clk 0:00:03]}  Kxc5 {[%clk 0:00:09]} 59. Rb2 {[%clk 0:00:04]}  Rc1+ {[%clk 0:00:07]} 60. Kxh2 {[%clk 0:00:04]}  a3 {[%clk 0:00:07]} 61. Re2 {[%clk 0:00:03]}  Kb4 {[%clk 0:00:07]} 62. Kg3 {[%clk 0:00:03]}  Kb3 {[%clk 0:00:07]} 63. Re3+ {[%clk 0:00:03]}  Rc3 {[%clk 0:00:07]} 0-1


[Site "https://www.chess.com"]

[Event "Titled Tuesday Blitz April 18 Early 2023"]
[White "Milikow, Yoav"]
[Black "Dushyant Sharma"]
[WhiteFideId "2822237"]
[BlackFideId "25065130"]
[WhiteElo "2410"]
[BlackElo "2198"]
[Result "1-0"]
[Round "03"]
[TimeControl "180+2"]
[Date "2023.04.18"]
[WhiteClock "0:00:06"]
[BlackClock "0:00:01"]

1. c4 {[%clk 0:02:56]}  e6 {[%clk 0:03:00]} 2. Nc3 {[%clk 0:02:54]}  d5 {[%clk 0:03:00]} 3. d4 {[%clk 0:02:54]}  c6 {[%clk 0:03:00]} 4. e4 {[%clk 0:02:54]}  dxe4 {[%clk 0:02:59]} 5. Nxe4 {[%clk 0:02:55]}  Bb4+ {[%clk 0:03:00]} 6. Bd2 {[%clk 0:02:56]}  Qxd4 {[%clk 0:02:59]} 7. Bxb4 {[%clk 0:02:56]}  Qxe4+ {[%clk 0:03:00]} 8. Be2 {[%clk 0:02:56]}  Na6 {[%clk 0:02:58]} 9. Bd6 {[%clk 0:02:57]}  Nf6 {[%clk 0:02:53]} 10. Nf3 {[%clk 0:02:51]}  Bd7 {[%clk 0:02:49]} 11. O-O {[%clk 0:02:17]}  O-O-O {[%clk 0:02:19]} 12. Ne5 {[%clk 0:02:11]}  Be8 {[%clk 0:02:07]} 13. Bf3 {[%clk 0:02:00]}  Qf5 {[%clk 0:02:05]} 14. Re1 {[%clk 0:01:38]}  g5 {[%clk 0:01:32]} 15. g4 {[%clk 0:01:26]}  Qf4 {[%clk 0:01:04]} 16. c5 {[%clk 0:00:57]}  h5 {[%clk 0:00:57]} 17. gxh5 {[%clk 0:00:22]}  g4 {[%clk 0:00:53]} 18. Ng6 {[%clk 0:00:05]}  fxg6 {[%clk 0:00:15]} 19. Bxf4 {[%clk 0:00:05]}  Rxd1 {[%clk 0:00:16]} 20. Bxd1 {[%clk 0:00:06]}  gxh5 {[%clk 0:00:07]} 21. Rxe6 {[%clk 0:00:05]}  Nd5 {[%clk 0:00:08]} 22. Bd6 {[%clk 0:00:05]}  Bd7 {[%clk 0:00:08]} 23. Re5 {[%clk 0:00:06]}  h4 {[%clk 0:00:05]} 24. Be2 {[%clk 0:00:05]}  Nf4 {[%clk 0:00:05]} 25. Bf1 {[%clk 0:00:05]}  Nh3+ {[%clk 0:00:02]} 26. Kg2 {[%clk 0:00:05]}  Nf4+ {[%clk 0:00:02]} 27. Kh1 {[%clk 0:00:06]}  Be6 {[%clk 0:00:03]} 28. Rd1 {[%clk 0:00:04]}  Bd5+ {[%clk 0:00:03]} 29. Kg1 {[%clk 0:00:04]}  Nh3+ {[%clk 0:00:03]} 30. Bxh3 {[%clk 0:00:05]}  gxh3 {[%clk 0:00:04]} 31. Rg5 {[%clk 0:00:06]}  Re8 {[%clk 0:00:04]} 32. f4 {[%clk 0:00:05]}  Bg2 {[%clk 0:00:03]} 33. f5 {[%clk 0:00:05]}  Nb4 {[%clk 0:00:03]} 34. f6 {[%clk 0:00:05]}  Nd5 {[%clk 0:00:02]} 35. f7 {[%clk 0:00:06]}  Rd8 {[%clk 0:00:01]} 36. Rg8 {[%clk 0:00:06]} 1-0


[Site "https://www.chess.com"]

[Event "Titled Tuesday Blitz April 18 Early 2023"]
[White "Bacallao Alonso, Yusnel"]
[Black "Eynullayev, Atilla"]
[WhiteFideId "3507416"]
[BlackFideId "13413570"]
[WhiteElo "2561"]
[BlackElo "2181"]
[Result "1-0"]
[Round "03"]
[TimeControl "180+2"]
[Date "2023.04.18"]
[WhiteClock "0:00:25"]
[BlackClock "0:00:05"]

1. d4 {[%clk 0:03:00]}  Nf6 {[%clk 0:03:00]} 2. Nf3 {[%clk 0:03:00]}  d5 {[%clk 0:03:00]} 3. c4 {[%clk 0:02:59]}  e6 {[%clk 0:03:00]} 4. Nc3 {[%clk 0:02:59]}  Nbd7 {[%clk 0:03:00]} 5. cxd5 {[%clk 0:02:58]}  exd5 {[%clk 0:03:00]} 6. Bf4 {[%clk 0:02:59]}  c6 {[%clk 0:02:51]} 7. Qc2 {[%clk 0:02:59]}  Nb6 {[%clk 0:02:50]} 8. e3 {[%clk 0:02:56]}  Be7 {[%clk 0:02:47]} 9. h3 {[%clk 0:02:55]}  O-O {[%clk 0:02:47]} 10. Bd3 {[%clk 0:02:54]}  Be6 {[%clk 0:02:39]} 11. Ng5 {[%clk 0:02:46]}  h6 {[%clk 0:02:24]} 12. Nf3 {[%clk 0:02:46]}  Rc8 {[%clk 0:02:19]} 13. O-O {[%clk 0:02:29]}  Re8 {[%clk 0:02:07]} 14. Rfd1 {[%clk 0:02:26]}  c5 {[%clk 0:01:57]} 15. Bb5 {[%clk 0:02:20]}  Bd7 {[%clk 0:01:53]} 16. Bxd7 {[%clk 0:02:15]}  Qxd7 {[%clk 0:01:53]} 17. dxc5 {[%clk 0:02:14]}  Rxc5 {[%clk 0:01:53]} 18. Qb3 {[%clk 0:02:12]}  Rec8 {[%clk 0:01:43]} 19. Rd3 {[%clk 0:02:09]}  Qf5 {[%clk 0:01:19]} 20. Rad1 {[%clk 0:02:04]}  Kh7 {[%clk 0:00:58]} 21. Be5 {[%clk 0:02:01]}  Ne4 {[%clk 0:00:39]} 22. Nxd5 {[%clk 0:01:01]}  Nxd5 {[%clk 0:00:39]} 23. Rxd5 {[%clk 0:01:01]}  Rxd5 {[%clk 0:00:25]} 24. Rxd5 {[%clk 0:00:58]}  Rc1+ {[%clk 0:00:24]} 25. Rd1 {[%clk 0:00:58]}  Rxd1+ {[%clk 0:00:13]} 26. Qxd1 {[%clk 0:00:59]}  f6 {[%clk 0:00:10]} 27. Bd4 {[%clk 0:00:55]}  b6 {[%clk 0:00:06]} 28. Qa4 {[%clk 0:00:54]}  a5 {[%clk 0:00:02]} 29. Bxb6 {[%clk 0:00:47]}  Qd5 {[%clk 0:00:01]} 30. Bd4 {[%clk 0:00:45]}  Bc5 {[%clk 0:00:01]} 31. Qxa5 {[%clk 0:00:43]}  Qc4 {[%clk 0:00:01]} 32. Bxc5 {[%clk 0:00:39]}  Nxc5 {[%clk 0:00:02]} 33. Qc3 {[%clk 0:00:38]}  Qd5 {[%clk 0:00:02]} 34. Qc2+ {[%clk 0:00:33]}  g6 {[%clk 0:00:01]} 35. Nd4 {[%clk 0:00:31]}  h5 {[%clk 0:00:02]} 36. b4 {[%clk 0:00:29]}  Ne4 {[%clk 0:00:02]} 37. b5 {[%clk 0:00:28]}  Nd6 {[%clk 0:00:02]} 38. b6 {[%clk 0:00:26]}  Qa5 {[%clk 0:00:03]} 39. Qc7+ {[%clk 0:00:25]}  Kh6 {[%clk 0:00:03]} 40. Qxd6 {[%clk 0:00:24]}  Qe1+ {[%clk 0:00:04]} 41. Kh2 {[%clk 0:00:25]}  Qxf2 {[%clk 0:00:05]} 1-0


[Site "https://www.chess.com"]

[Event "Titled Tuesday Blitz April 18 Early 2023"]
[White "Jovic, Stanoje"]
[Black "Samunenkov, Ihor"]
[WhiteFideId "905020"]
[BlackFideId "14187086"]
[WhiteElo "2236"]
[BlackElo "2457"]
[Result "0-1"]
[Round "03"]
[TimeControl "180+2"]
[Date "2023.04.18"]
[WhiteClock "0:00:21"]
[BlackClock "0:00:21"]

1. c4 {[%clk 0:03:00]}  c5 {[%clk 0:02:58]} 2. g3 {[%clk 0:03:00]}  Nc6 {[%clk 0:02:56]} 3. Bg2 {[%clk 0:03:01]}  g6 {[%clk 0:02:56]} 4. Nc3 {[%clk 0:03:01]}  Bg7 {[%clk 0:02:57]} 5. Nf3 {[%clk 0:03:01]}  d6 {[%clk 0:02:57]} 6. O-O {[%clk 0:03:01]}  Rb8 {[%clk 0:02:57]} 7. e3 {[%clk 0:02:58]}  Nf6 {[%clk 0:02:37]} 8. d4 {[%clk 0:02:56]}  O-O {[%clk 0:02:38]} 9. dxc5 {[%clk 0:02:53]}  dxc5 {[%clk 0:02:35]} 10. Na4 {[%clk 0:02:48]}  b6 {[%clk 0:02:24]} 11. e4 {[%clk 0:02:44]}  Qxd1 {[%clk 0:02:14]} 12. Rxd1 {[%clk 0:02:42]}  Nxe4 {[%clk 0:01:58]} 13. Bf4 {[%clk 0:02:40]}  Nd6 {[%clk 0:01:31]} 14. Rxd6 {[%clk 0:02:37]}  exd6 {[%clk 0:01:32]} 15. Bxd6 {[%clk 0:02:37]}  Be6 {[%clk 0:01:26]} 16. Bxb8 {[%clk 0:02:31]}  Rxb8 {[%clk 0:01:22]} 17. Ng5 {[%clk 0:02:27]}  Bd7 {[%clk 0:01:22]} 18. Bd5 {[%clk 0:02:13]}  Nb4 {[%clk 0:01:13]} 19. Nc3 {[%clk 0:02:02]}  Nxd5 {[%clk 0:01:07]} 20. cxd5 {[%clk 0:02:02]}  Re8 {[%clk 0:01:02]} 21. Nge4 {[%clk 0:01:48]}  Bd4 {[%clk 0:00:56]} 22. Kg2 {[%clk 0:01:44]}  Kg7 {[%clk 0:00:52]} 23. a4 {[%clk 0:01:37]}  Re5 {[%clk 0:00:44]} 24. f4 {[%clk 0:01:33]}  Re7 {[%clk 0:00:41]} 25. a5 {[%clk 0:01:23]}  b5 {[%clk 0:00:40]} 26. Nd6 {[%clk 0:01:17]}  b4 {[%clk 0:00:34]} 27. Ncb5 {[%clk 0:01:16]}  Bxb5 {[%clk 0:00:21]} 28. Nxb5 {[%clk 0:01:15]}  Bxb2 {[%clk 0:00:22]} 29. Rd1 {[%clk 0:01:10]}  c4 {[%clk 0:00:17]} 30. d6 {[%clk 0:00:59]}  Rd7 {[%clk 0:00:18]} 31. Kf3 {[%clk 0:00:54]}  c3 {[%clk 0:00:17]} 32. Nd4 {[%clk 0:00:50]}  Rxd6 {[%clk 0:00:17]} 33. Ke2 {[%clk 0:00:38]}  Rxd4 {[%clk 0:00:16]} 34. Rxd4 {[%clk 0:00:23]}  c2 {[%clk 0:00:17]} 35. Rc4 {[%clk 0:00:23]}  c1=Q {[%clk 0:00:17]} 36. Rxc1 {[%clk 0:00:23]}  Bxc1 {[%clk 0:00:18]} 37. Kd3 {[%clk 0:00:23]}  b3 {[%clk 0:00:17]} 38. a6 {[%clk 0:00:22]}  b2 {[%clk 0:00:18]} 39. Kc2 {[%clk 0:00:22]}  h5 {[%clk 0:00:18]} 40. h3 {[%clk 0:00:21]}  Kf6 {[%clk 0:00:18]} 41. g4 {[%clk 0:00:22]}  hxg4 {[%clk 0:00:19]} 42. hxg4 {[%clk 0:00:21]}  Bxf4 {[%clk 0:00:20]} 43. Kxb2 {[%clk 0:00:21]}  Kg5 {[%clk 0:00:21]} 0-1


[Site "https://www.chess.com"]

[Event "Titled Tuesday Blitz April 18 Early 2023"]
[White "Eggink, Ryszard"]
[Black "Matinian, Nikita"]
[WhiteFideId "1125869"]
[BlackFideId "24129100"]
[WhiteElo "2283"]
[BlackElo "2422"]
[Result "0-1"]
[Round "03"]
[TimeControl "180+2"]
[Date "2023.04.18"]
[WhiteClock "0:00:38"]
[BlackClock "0:00:20"]

1. d4 {[%clk 0:03:00]}  Nf6 {[%clk 0:02:59]} 2. c4 {[%clk 0:03:01]}  e6 {[%clk 0:03:00]} 3. Nf3 {[%clk 0:03:00]}  Bb4+ {[%clk 0:02:59]} 4. Bd2 {[%clk 0:02:59]}  a5 {[%clk 0:02:59]} 5. g3 {[%clk 0:02:59]}  O-O {[%clk 0:02:57]} 6. Bg2 {[%clk 0:02:59]}  d5 {[%clk 0:02:58]} 7. O-O {[%clk 0:02:54]}  dxc4 {[%clk 0:02:50]} 8. Bg5 {[%clk 0:02:54]}  c5 {[%clk 0:02:45]} 9. a3 {[%clk 0:02:49]}  Nc6 {[%clk 0:02:34]} 10. axb4 {[%clk 0:02:42]}  cxb4 {[%clk 0:02:35]} 11. Nbd2 {[%clk 0:02:36]}  Nxd4 {[%clk 0:02:16]} 12. Nxc4 {[%clk 0:02:31]}  Nxf3+ {[%clk 0:02:14]} 13. Bxf3 {[%clk 0:02:30]}  Qc7 {[%clk 0:02:14]} 14. Bxf6 {[%clk 0:02:16]}  gxf6 {[%clk 0:02:14]} 15. b3 {[%clk 0:02:08]}  Rd8 {[%clk 0:02:13]} 16. Qc1 {[%clk 0:02:03]}  Ra6 {[%clk 0:02:11]} 17. Qh6 {[%clk 0:01:52]}  Qe7 {[%clk 0:02:11]} 18. Nxa5 {[%clk 0:01:45]}  f5 {[%clk 0:01:58]} 19. Nxb7 {[%clk 0:01:34]}  Rxa1 {[%clk 0:01:28]} 20. Rxa1 {[%clk 0:01:32]}  Bxb7 {[%clk 0:01:27]} 21. Bxb7 {[%clk 0:01:31]}  e5 {[%clk 0:01:16]} 22. Ra8 {[%clk 0:01:27]}  Rxa8 {[%clk 0:01:16]} 23. Bxa8 {[%clk 0:01:28]}  e4 {[%clk 0:01:12]} 24. Bd5 {[%clk 0:01:25]}  Qe5 {[%clk 0:01:07]} 25. Bc4 {[%clk 0:01:14]}  Qa1+ {[%clk 0:01:00]} 26. Kg2 {[%clk 0:01:14]}  Qe5 {[%clk 0:01:01]} 27. Qg5+ {[%clk 0:01:09]}  Kf8 {[%clk 0:01:01]} 28. Qd8+ {[%clk 0:01:08]}  Kg7 {[%clk 0:01:02]} 29. Qd7 {[%clk 0:01:08]}  Qf6 {[%clk 0:01:01]} 30. Qb7 {[%clk 0:01:02]}  h5 {[%clk 0:00:58]} 31. h4 {[%clk 0:01:01]}  Kg6 {[%clk 0:00:56]} 32. Qxb4 {[%clk 0:00:56]}  f4 {[%clk 0:00:56]} 33. Qf8 {[%clk 0:00:46]}  f3+ {[%clk 0:00:55]} 34. exf3 {[%clk 0:00:44]}  Qxf3+ {[%clk 0:00:24]} 35. Kg1 {[%clk 0:00:44]}  Qd1+ {[%clk 0:00:24]} 36. Kh2 {[%clk 0:00:43]}  f6 {[%clk 0:00:24]} 37. Qf7+ {[%clk 0:00:39]}  Kf5 {[%clk 0:00:25]} 38. Qxh5+ {[%clk 0:00:39]}  Qxh5 {[%clk 0:00:24]} 39. Bf1 {[%clk 0:00:35]}  Qf3 {[%clk 0:00:22]} 40. Kg1 {[%clk 0:00:34]}  Qxb3 {[%clk 0:00:22]} 41. Bh3+ {[%clk 0:00:34]}  Ke5 {[%clk 0:00:21]} 42. Bg2 {[%clk 0:00:35]}  e3 {[%clk 0:00:21]} 43. Bf1 {[%clk 0:00:36]}  f5 {[%clk 0:00:19]} 44. Bg2 {[%clk 0:00:37]}  f4 {[%clk 0:00:20]} 45. Bf1 {[%clk 0:00:38]}  exf2+ {[%clk 0:00:19]} 46. Kxf2 {[%clk 0:00:38]}  Qxg3+ {[%clk 0:00:20]} 47. Ke2 {[%clk 0:00:38]}  f3+ {[%clk 0:00:20]} 0-1


[Site "https://www.chess.com"]

[Event "Titled Tuesday Blitz April 18 Early 2023"]
[White "Delorme, Axel"]
[Black "Jaferian, Koosha"]
[WhiteFideId "632023"]
[BlackFideId "12507440"]
[WhiteElo "2478"]
[BlackElo "2073"]
[Result "1/2-1/2"]
[Round "03"]
[TimeControl "180+2"]
[Date "2023.04.18"]
[WhiteClock "0:02:36"]
[BlackClock "0:02:09"]

1. e4 {[%clk 0:03:00]}  c6 {[%clk 0:03:00]} 2. d4 {[%clk 0:03:00]}  d5 {[%clk 0:03:00]} 3. Nc3 {[%clk 0:03:01]}  dxe4 {[%clk 0:03:01]} 4. Nxe4 {[%clk 0:03:02]}  Bf5 {[%clk 0:03:01]} 5. Ng3 {[%clk 0:03:02]}  Bg6 {[%clk 0:03:02]} 6. h4 {[%clk 0:03:03]}  h6 {[%clk 0:03:02]} 7. Nf3 {[%clk 0:03:03]}  Nd7 {[%clk 0:03:03]} 8. h5 {[%clk 0:03:04]}  Bh7 {[%clk 0:03:04]} 9. Bd3 {[%clk 0:03:04]}  Bxd3 {[%clk 0:03:05]} 10. Qxd3 {[%clk 0:03:05]}  e6 {[%clk 0:03:05]} 11. Bd2 {[%clk 0:03:06]}  Ngf6 {[%clk 0:03:06]} 12. O-O-O {[%clk 0:03:06]}  Be7 {[%clk 0:03:07]} 13. Ne4 {[%clk 0:03:07]}  O-O {[%clk 0:03:06]} 14. Kb1 {[%clk 0:03:03]}  c5 {[%clk 0:03:06]} 15. dxc5 {[%clk 0:02:49]}  Nxc5 {[%clk 0:03:06]} 16. Qxd8 {[%clk 0:02:43]}  Rfxd8 {[%clk 0:03:05]} 17. Nxf6+ {[%clk 0:02:42]}  Bxf6 {[%clk 0:03:06]} 18. Be3 {[%clk 0:02:41]}  Na4 {[%clk 0:03:06]} 19. c3 {[%clk 0:02:37]}  b5 {[%clk 0:03:06]} 20. Kc2 {[%clk 0:02:36]}  a5 {[%clk 0:02:09]} 1/2-1/2


[Site "https://www.chess.com"]

[Event "Titled Tuesday Blitz April 18 Early 2023"]
[White "Sarana, Alexey"]
[Black "Fiedorek, Michal"]
[WhiteFideId "24133795"]
[BlackFideId "1199528"]
[WhiteElo "2714"]
[BlackElo "2135"]
[Result "1-0"]
[Round "03"]
[TimeControl "180+2"]
[Date "2023.04.18"]
[WhiteClock "0:00:35"]
[BlackClock "0:00:02"]

1. d4 {[%clk 0:03:00]}  Nf6 {[%clk 0:02:50]} 2. c4 {[%clk 0:02:59]}  e6 {[%clk 0:02:46]} 3. Nf3 {[%clk 0:02:57]}  d5 {[%clk 0:02:47]} 4. g3 {[%clk 0:02:53]}  Bb4+ {[%clk 0:02:46]} 5. Nbd2 {[%clk 0:02:49]}  O-O {[%clk 0:02:45]} 6. Bg2 {[%clk 0:02:50]}  b6 {[%clk 0:02:35]} 7. O-O {[%clk 0:02:48]}  Bb7 {[%clk 0:02:35]} 8. cxd5 {[%clk 0:02:48]}  exd5 {[%clk 0:02:34]} 9. Qb3 {[%clk 0:02:48]}  Bd6 {[%clk 0:02:33]} 10. Nb1 {[%clk 0:02:48]}  a6 {[%clk 0:02:29]} 11. Nc3 {[%clk 0:02:49]}  Qe7 {[%clk 0:02:15]} 12. Bg5 {[%clk 0:02:46]}  Nbd7 {[%clk 0:02:15]} 13. Rac1 {[%clk 0:02:03]}  h6 {[%clk 0:02:11]} 14. Bf4 {[%clk 0:02:04]}  Rac8 {[%clk 0:01:45]} 15. e3 {[%clk 0:02:02]}  c5 {[%clk 0:01:29]} 16. Bxd6 {[%clk 0:01:59]}  Qxd6 {[%clk 0:01:29]} 17. Qa3 {[%clk 0:01:56]}  Qe6 {[%clk 0:01:21]} 18. dxc5 {[%clk 0:01:52]}  bxc5 {[%clk 0:01:18]} 19. Rfd1 {[%clk 0:01:52]}  Rfd8 {[%clk 0:00:58]} 20. Ne2 {[%clk 0:01:50]}  Ne4 {[%clk 0:00:51]} 21. Nf4 {[%clk 0:01:49]}  Qf5 {[%clk 0:00:47]} 22. Qb3 {[%clk 0:01:44]}  Ba8 {[%clk 0:00:36]} 23. Nxd5 {[%clk 0:01:43]}  Qe6 {[%clk 0:00:28]} 24. Nf4 {[%clk 0:01:19]}  Qxb3 {[%clk 0:00:28]} 25. axb3 {[%clk 0:01:20]}  Ndf6 {[%clk 0:00:26]} 26. Ne5 {[%clk 0:01:17]}  Rxd1+ {[%clk 0:00:10]} 27. Rxd1 {[%clk 0:01:17]}  Rb8 {[%clk 0:00:11]} 28. Bf1 {[%clk 0:01:09]}  a5 {[%clk 0:00:10]} 29. Bc4 {[%clk 0:01:08]}  Bb7 {[%clk 0:00:09]} 30. Nxf7 {[%clk 0:01:06]}  Kh7 {[%clk 0:00:06]} 31. h4 {[%clk 0:01:01]}  Ng4 {[%clk 0:00:06]} 32. Rd7 {[%clk 0:00:40]}  Nexf2 {[%clk 0:00:06]} 33. Nd6 {[%clk 0:00:40]}  Nh3+ {[%clk 0:00:02]} 34. Kf1 {[%clk 0:00:40]}  Bf3 {[%clk 0:00:02]} 35. Nf5 {[%clk 0:00:36]}  Be4 {[%clk 0:00:02]} 36. Rxg7+ {[%clk 0:00:34]}  Kh8 {[%clk 0:00:02]} 37. Ng6# {[%clk 0:00:35]} 1-0


[Site "https://www.chess.com"]

[Event "Titled Tuesday Blitz April 18 Early 2023"]
[White "Novikov, Evgenij"]
[Black "Hakobyan, Aram"]
[WhiteFideId "4125380"]
[BlackFideId "13306677"]
[WhiteElo "2242"]
[BlackElo "2584"]
[Result "0-1"]
[Round "03"]
[TimeControl "180+2"]
[Date "2023.04.18"]
[WhiteClock "0:00:01"]
[BlackClock "0:00:06"]

1. d4 {[%clk 0:02:52]}  Nf6 {[%clk 0:03:00]} 2. Nf3 {[%clk 0:02:52]}  g6 {[%clk 0:02:58]} 3. c4 {[%clk 0:02:52]}  Bg7 {[%clk 0:02:58]} 4. Nc3 {[%clk 0:02:52]}  O-O {[%clk 0:02:59]} 5. e4 {[%clk 0:02:52]}  d6 {[%clk 0:02:59]} 6. Be2 {[%clk 0:02:53]}  e5 {[%clk 0:02:58]} 7. d5 {[%clk 0:02:53]}  Na6 {[%clk 0:02:57]} 8. O-O {[%clk 0:02:52]}  Nc5 {[%clk 0:02:58]} 9. Qc2 {[%clk 0:02:52]}  a5 {[%clk 0:02:58]} 10. Bg5 {[%clk 0:02:52]}  h6 {[%clk 0:02:58]} 11. Be3 {[%clk 0:02:52]}  Ng4 {[%clk 0:02:57]} 12. Bxc5 {[%clk 0:02:52]}  dxc5 {[%clk 0:02:57]} 13. h3 {[%clk 0:02:52]}  Nf6 {[%clk 0:02:58]} 14. Nxe5 {[%clk 0:02:53]}  Nxd5 {[%clk 0:02:57]} 15. cxd5 {[%clk 0:02:54]}  Bxe5 {[%clk 0:02:57]} 16. f4 {[%clk 0:02:54]}  Bd4+ {[%clk 0:02:56]} 17. Kh2 {[%clk 0:02:55]}  c6 {[%clk 0:02:56]} 18. Rad1 {[%clk 0:02:52]}  Qh4 {[%clk 0:02:50]} 19. Qd3 {[%clk 0:02:44]}  a4 {[%clk 0:02:46]} 20. a3 {[%clk 0:02:37]}  Re8 {[%clk 0:02:44]} 21. Qf3 {[%clk 0:02:29]}  Bd7 {[%clk 0:02:30]} 22. e5 {[%clk 0:02:11]}  cxd5 {[%clk 0:02:05]} 23. Nxd5 {[%clk 0:01:51]}  Bc6 {[%clk 0:02:05]} 24. Bc4 {[%clk 0:01:28]}  Kg7 {[%clk 0:02:01]} 25. Qe2 {[%clk 0:00:15]}  b5 {[%clk 0:01:52]} 26. Ba2 {[%clk 0:00:14]}  Bxd5 {[%clk 0:00:58]} 27. Bxd5 {[%clk 0:00:13]}  Rad8 {[%clk 0:00:59]} 28. Be4 {[%clk 0:00:12]}  c4 {[%clk 0:00:54]} 29. g3 {[%clk 0:00:12]}  Qe7 {[%clk 0:00:55]} 30. h4 {[%clk 0:00:09]}  c3 {[%clk 0:00:49]} 31. bxc3 {[%clk 0:00:09]}  Bxc3 {[%clk 0:00:50]} 32. Rxd8 {[%clk 0:00:09]}  Rxd8 {[%clk 0:00:50]} 33. Rd1 {[%clk 0:00:05]}  Rxd1 {[%clk 0:00:49]} 34. Qxd1 {[%clk 0:00:06]}  Qxa3 {[%clk 0:00:49]} 35. h5 {[%clk 0:00:07]}  g5 {[%clk 0:00:28]} 36. fxg5 {[%clk 0:00:06]}  hxg5 {[%clk 0:00:16]} 37. Qg4 {[%clk 0:00:05]}  Qb2+ {[%clk 0:00:09]} 38. Kh3 {[%clk 0:00:05]}  Qc1 {[%clk 0:00:09]} 39. h6+ {[%clk 0:00:03]}  Kxh6 {[%clk 0:00:10]} 40. Qf5 {[%clk 0:00:02]}  g4+ {[%clk 0:00:09]} 41. Kxg4 {[%clk 0:00:02]}  Qd1+ {[%clk 0:00:08]} 42. Bf3 {[%clk 0:00:02]}  Qd4+ {[%clk 0:00:08]} 43. Kh3 {[%clk 0:00:02]}  Qxe5 {[%clk 0:00:09]} 44. Qxf7 {[%clk 0:00:02]}  Qf6 {[%clk 0:00:05]} 45. Qh5+ {[%clk 0:00:02]}  Kg7 {[%clk 0:00:05]} 46. Qxb5 {[%clk 0:00:02]}  Qxf3 {[%clk 0:00:04]} 47. Qxa4 {[%clk 0:00:02]}  Qh1+ {[%clk 0:00:04]} 48. Kg4 {[%clk 0:00:02]}  Bf6 {[%clk 0:00:05]} 49. Qf4 {[%clk 0:00:02]}  Qh8 {[%clk 0:00:04]} 50. Qf5 {[%clk 0:00:02]}  Qb8 {[%clk 0:00:04]} 51. Qd7+ {[%clk 0:00:02]}  Kg6 {[%clk 0:00:04]} 52. Qf5+ {[%clk 0:00:02]}  Kg7 {[%clk 0:00:04]} 53. Qd7+ {[%clk 0:00:02]}  Kh8 {[%clk 0:00:05]} 54. Qf5 {[%clk 0:00:02]}  Qg8+ {[%clk 0:00:04]} 55. Kf3 {[%clk 0:00:01]}  Qc4 {[%clk 0:00:05]} 56. Qe4 {[%clk 0:00:01]}  Qc3+ {[%clk 0:00:05]} 57. Kg4 {[%clk 0:00:01]}  Qa1 {[%clk 0:00:03]} 58. Qf5 {[%clk 0:00:01]}  Kg7 {[%clk 0:00:04]} 59. Qf4 {[%clk 0:00:01]}  Qd1+ {[%clk 0:00:03]} 60. Kf5 {[%clk 0:00:01]}  Qd7+ {[%clk 0:00:04]} 61. Ke4 {[%clk 0:00:01]}  Qc6+ {[%clk 0:00:04]} 62. Ke3 {[%clk 0:00:02]}  Qc1+ {[%clk 0:00:03]} 63. Kf3 {[%clk 0:00:02]}  Qh1+ {[%clk 0:00:03]} 64. Kf2 {[%clk 0:00:03]}  Qh5 {[%clk 0:00:03]} 65. Qf3 {[%clk 0:00:02]}  Qc5+ {[%clk 0:00:04]} 66. Ke2 {[%clk 0:00:03]}  Qc2+ {[%clk 0:00:04]} 67. Ke3 {[%clk 0:00:03]}  Bg5+ {[%clk 0:00:04]} 68. Kd4 {[%clk 0:00:02]}  Qd2+ {[%clk 0:00:05]} 69. Kc5 {[%clk 0:00:02]}  Bf6 {[%clk 0:00:06]} 70. Qg4+ {[%clk 0:00:01]}  Kf7 {[%clk 0:00:06]} 0-1


[Site "https://www.chess.com"]